bitfinex/quotes_ETHUSD_20241130
["timestamp","ask_amount","ask_price","bid_price","bid_amount"]
[1733010442010,0.27740612,3707.4,3706.3,3.0]
[1733010442242,0.02692167,3707.4,3706.3,3.0]
[1733010442751,0.2505178,3707.3,3706.2,0.08317923]
[1733010442952,0.778,3706.9,3706.2,0.08317923]
[1733010443107,0.02692167,3706.8,3706.2,0.08317923]
[1733010443810,0.778,3706.7,3706.2,0.08317923]
[1733010444010,0.57692167,3706.6,3706.2,0.08317923]
[1733010444245,0.13549217,3706.5,3706.2,0.08317923]
[1733010444409,0.02692167,3706.4,3706.2,0.08317923]
[1733010445131,0.778,3706.3,3706.2,0.08317923]
[1733010447715,0.80492167,3706.3,3706.2,0.08317923]
[1733010447935,0.778,3706.3,3706.2,0.08317923]
[1733010448467,0.9385466,3706.3,3706.2,0.08317923]
[1733010449556,1.4885466,3706.3,3706.2,0.08317923]
[1733010450948,0.9385466,3706.3,3706.2,0.08317923]
[1733010452489,0.778,3706.3,3706.2,0.08317923]
[1733010453443,1.02839423,3706.7,3706.2,0.08317923]
[1733010453788,0.778,3706.7,3706.2,0.08317923]
[1733010454358,1.02839423,3707.0,3706.2,0.08317923]
[1733010454560,0.02692167,3706.9,3706.2,0.08317923]
[1733010454784,0.2773159,3706.9,3706.2,0.08317923]
[1733010455002,0.25039423,3707.4,3706.5,0.8272]
[1733010455161,0.25039423,3707.8,3706.9,3.0]
[1733010455344,0.25039423,3708.0,3707.0,0.8272]
[1733010455691,0.778,3708.4,3707.0,0.8272]
[1733010455692,0.02692167,3707.9,3707.0,0.8272]
[1733010455890,0.2773159,3708.2,3706.9,3.0]
[1733010456104,0.778,3708.0,3706.9,3.0]
[1733010456280,0.02692167,3707.9,3706.9,3.0]
[1733010458175,0.25026506,3708.2,3707.3,0.8272]
[1733010458417,0.02692167,3708.1,3707.3,0.8272]
[1733010458573,0.80492167,3708.4,3707.3,0.8272]
[1733010458774,1.05518673,3708.4,3707.3,0.8272]
[1733010458973,0.02692167,3708.4,3707.3,0.8272]
[1733010459716,0.27701182,3708.4,3707.3,0.8272]
[1733010460239,0.02692167,3708.4,3707.3,0.8272]
[1733010460445,0.02692167,3708.5,3707.3,0.8272]
[1733010460653,0.27701182,3708.5,3707.3,0.8272]
[1733010460797,0.25009015,3708.6,3707.3,0.8272]
[1733010461147,0.25009015,3708.5,3707.3,0.8272]
[1733010461319,0.02692167,3708.4,3707.3,0.8272]
[1733010461518,0.27701182,3708.4,3707.3,0.8272]
[1733010461715,1.04909015,3708.3,3707.3,0.8272]
[1733010461926,0.439613,3708.2,3707.3,0.8272]
[1733010462127,0.25009015,3708.1,3707.3,0.8272]
[1733010462447,0.27701182,3708.0,3706.8,0.7957]
[1733010462746,0.25004721,3707.9,3706.8,0.7957]
[1733010462913,0.02692167,3707.8,3706.8,0.7957]
[1733010463118,0.25004721,3707.9,3706.8,0.7957]
[1733010463315,0.16260118,3708.2,3706.9,3.18480782]
[1733010463518,0.02692167,3708.1,3706.9,3.18480782]
[1733010463849,0.24996827,3708.1,3706.9,3.18480782]
[1733010464548,0.24996827,3708.1,3706.8,0.7957]
[1733010464549,0.57692167,3708.0,3706.8,0.7957]
[1733010464855,0.82688994,3708.0,3706.8,0.7957]
[1733010465019,0.799,3707.8,3706.8,0.7957]
[1733010465351,0.18951066,3707.7,3706.8,0.7957]
[1733010465848,0.43947893,3707.7,3706.8,0.7957]
[1733010467605,0.43947893,3707.7,3706.3,0.7957]
[1733010467818,0.24996827,3707.6,3706.3,0.7957]
[1733010468035,0.27688994,3707.5,3706.3,0.7957]
[1733010468338,0.02692167,3707.5,3706.3,0.7957]
[1733010468865,0.24996827,3707.6,3706.3,0.7957]
[1733010470065,0.24996827,3707.6,3706.9,3.18480782]
[1733010470238,0.80002406,3708.1,3706.9,3.18480782]
[1733010470437,0.27694573,3708.0,3706.7,0.7957]
[1733010470672,0.25002406,3707.9,3706.7,0.7957]
[1733010470966,0.55,3708.1,3706.7,0.7957]
[1733010470967,0.27694573,3707.8,3706.7,0.7957]
[1733010471267,0.25002406,3707.7,3706.7,0.7957]
[1733010471530,0.02692167,3707.6,3706.7,0.7957]
[1733010471895,0.25002406,3707.9,3706.7,0.7957]
[1733010472179,0.25002406,3707.8,3706.7,0.7957]
[1733010472678,0.17885469,3707.9,3706.7,0.7957]
[1733010472975,0.45580042,3707.9,3706.7,0.7957]
[1733010473179,0.17885469,3707.9,3706.7,0.7957]
[1733010473487,0.42887875,3707.9,3706.7,0.7957]
[1733010473653,0.55,3708.1,3706.7,0.7957]
[1733010473654,0.24998097,3708.0,3706.7,0.7957]
[1733010473848,0.24998097,3707.9,3706.7,0.7957]
[1733010474182,0.24998097,3707.8,3706.7,0.7957]
[1733010474390,0.27690264,3708.0,3706.7,0.7957]
[1733010474685,0.42883135,3707.9,3706.7,0.7957]
[1733010474987,0.24998097,3707.8,3706.7,0.7957]
[1733010475282,0.27690264,3707.8,3706.7,0.7957]
[1733010475484,0.24998097,3707.7,3706.7,0.7957]
[1733010475691,0.24998097,3707.8,3706.7,0.7957]
[1733010475983,0.55,3707.6,3706.6,3.0]
[1733010476156,0.41257123,3707.5,3706.6,3.0]
[1733010476364,0.24998097,3707.4,3706.3,0.7957]
[1733010476558,0.799,3707.2,3706.2,0.08317923]
[1733010476872,1.04898097,3707.2,3706.2,0.08317923]
[1733010477077,0.799,3707.2,3706.2,0.08317923]
[1733010477771,0.799,3707.2,3706.2,3.08317923]
[1733010477977,1.04904425,3707.2,3706.2,3.08317923]
[1733010478172,0.799,3707.2,3706.2,3.08317923]
[1733010478374,0.55,3707.1,3706.2,0.08317923]
[1733010478581,0.41264084,3707.0,3706.2,0.08317923]
[1733010478777,0.02692167,3706.9,3706.2,0.08317923]
[1733010478961,0.799,3706.8,3706.2,0.08317923]
[1733010479167,0.02692167,3706.7,3706.2,0.08317923]
[1733010480400,0.799,3706.8,3706.2,0.08317923]
[1733010480566,0.25012866,3706.7,3706.2,0.08317923]
[1733010481161,0.02692167,3706.6,3706.2,0.08317923]
[1733010481854,0.27711846,3706.6,3706.2,0.09317923]
[1733010482196,0.25019679,3706.7,3706.2,0.09317923]
[1733010482351,0.25016369,3706.6,3706.2,0.09317923]
[1733010482699,0.02692167,3706.5,3706.2,0.09317923]
[1733010483067,0.25016676,3706.7,3706.2,0.09317923]
[1733010483279,0.25016676,3706.6,3706.2,0.09317923]
[1733010483483,0.25016676,3706.7,3706.2,0.09317923]
[1733010483704,0.25018476,3706.6,3706.2,0.09317923]
[1733010483851,0.25018476,3706.7,3706.2,0.09317923]
[1733010484053,0.25018476,3706.6,3706.2,0.09317923]
[1733010484255,0.02692167,3706.5,3706.2,0.09317923]
[1733010484695,0.02692167,3706.7,3706.2,0.09317923]
[1733010484877,0.25015145,3706.6,3706.2,0.09317923]
[1733010485050,0.25015145,3706.5,3706.2,0.09317923]
[1733010485261,0.02692167,3706.4,3706.2,0.09317923]
[1733010485586,0.7658,3706.3,3706.2,0.09317923]
[1733010486106,1.3158,3706.3,3706.2,0.09317923]
[1733010486271,1.56588271,3706.3,3706.2,0.09317923]
[1733010486455,1.73965733,3706.3,3706.2,0.09317923]
[1733010489579,1.73936603,3706.3,3706.2,0.09317923]
[1733010492800,1.48957462,3706.3,3706.2,0.09317923]
[1733010493142,1.76617004,3706.3,3706.2,0.09317923]
[1733010496349,1.82637004,3706.3,3706.2,0.09317923]
[1733010497512,1.24944837,3706.3,3706.2,0.09317923]
[1733010497729,0.24967375,3706.4,3706.2,0.09317923]
[1733010497900,0.24967375,3706.5,3706.3,0.8269]
[1733010498304,0.24967375,3706.9,3706.3,0.8269]
[1733010498504,0.24967375,3707.0,3706.3,0.8269]
[1733010498739,0.24967375,3706.9,3706.3,0.8269]
[1733010498941,0.24967375,3707.0,3706.3,0.8269]
[1733010499128,9.816,3707.1,3706.3,0.8269]
[1733010499331,0.826,3707.1,3706.3,0.8269]
[1733010500105,0.55,3707.0,3706.3,0.8269]
[1733010500419,0.79971977,3707.1,3706.3,0.8269]
[1733010500733,0.55,3707.2,3706.3,0.8269]
[1733010500915,0.55,3707.0,3706.3,0.8269]
[1733010501587,0.55,3707.2,3706.3,0.8269]
[1733010501854,0.55,3707.0,3706.3,0.8269]
[1733010502451,0.57692167,3707.3,3706.3,0.8269]
[1733010502649,0.55,3707.1,3706.3,0.8269]
[1733010502869,0.55,3706.9,3706.3,0.8269]
[1733010503165,0.27664474,3706.8,3706.2,0.09317923]
[1733010503464,0.8257,3706.6,3706.2,0.09317923]
[1733010503663,0.82664474,3706.5,3706.2,0.09317923]
[1733010503960,0.55,3706.3,3706.2,0.09317923]
[1733010504464,0.79985113,3706.5,3706.2,0.09317923]
[1733010504658,0.55,3706.3,3706.2,0.09317923]
[1733010504862,0.24985848,3706.3,3706.2,0.09317923]
[1733010505069,0.39955692,3707.4,3706.3,0.7843]
[1733010505366,0.24995612,3707.3,3706.5,0.7843]
[1733010505569,0.24995612,3707.2,3706.5,0.7843]
[1733010505740,0.39955692,3707.7,3706.5,0.7843]
[1733010505926,0.24997134,3707.6,3706.5,0.7843]
[1733010506127,0.24997134,3707.5,3706.5,0.7843]
[1733010506422,0.24994009,3707.4,3706.5,0.7843]
[1733010506880,0.94990414,3707.9,3706.5,0.7843]
[1733010507025,0.24988803,3707.8,3706.5,0.7843]
[1733010507225,0.55,3707.6,3706.5,0.7843]
[1733010507528,0.55,3707.4,3706.5,0.7843]
[1733010508153,0.55,3707.6,3706.5,0.7843]
[1733010508342,0.24983647,3707.5,3706.5,0.7843]
[1733010508555,0.55,3707.6,3706.5,0.7843]
[1733010508752,0.55,3707.4,3706.5,0.7843]
[1733010509073,0.55,3707.6,3706.5,0.7843]
[1733010509296,0.55,3707.4,3706.5,0.7843]
[1733010509882,0.55,3707.7,3706.5,0.7843]
[1733010510098,0.55,3707.5,3706.5,0.7843]
[1733010510456,0.24972314,3707.4,3706.5,0.7843]
[1733010510907,0.94990414,3707.8,3706.5,0.7843]
[1733010511079,0.55,3707.6,3706.5,0.8292]
[1733010511285,0.24965636,3707.5,3706.5,0.8292]
[1733010511483,0.55,3707.6,3706.5,0.8292]
[1733010511657,0.24956029,3707.5,3706.5,0.8292]
[1733010511858,0.55,3707.9,3706.5,0.8292]
[1733010512201,0.55,3707.7,3706.6,0.85617356]
[1733010512381,0.24956491,3707.6,3706.6,0.8292]
[1733010512595,0.55,3707.5,3706.6,0.8292]
[1733010512905,0.55,3707.8,3706.6,0.8292]
[1733010513113,0.55,3707.6,3706.6,0.8292]
[1733010513270,0.55,3707.6,3706.5,0.8292]
[1733010513717,0.79956491,3707.9,3706.5,0.8292]
[1733010513865,0.55,3707.7,3706.5,0.8292]
[1733010514061,0.24956491,3707.7,3706.5,0.8292]
[1733010514306,0.55,3707.7,3706.5,0.8292]
[1733010514667,0.55,3707.8,3706.5,0.8292]
[1733010514908,0.79956491,3707.8,3706.5,0.8292]
[1733010515117,0.55,3707.9,3706.5,0.8292]
[1733010515405,0.55,3707.7,3706.5,0.8292]
[1733010515763,0.79956491,3707.9,3706.5,0.8292]
[1733010515969,0.55,3707.7,3706.5,0.8292]
[1733010516177,0.55,3707.5,3706.5,0.8292]
[1733010516416,0.55,3707.3,3706.5,0.8292]
[1733010516711,0.55,3707.5,3706.5,0.8292]
[1733010517016,0.55,3707.7,3706.5,0.8292]
[1733010517512,0.02692167,3707.6,3706.5,0.8292]
[1733010517683,0.55,3707.5,3706.5,0.8292]
[1733010518015,0.55,3707.4,3706.5,0.8292]
[1733010518609,0.24956491,3707.7,3706.5,0.85617529]
[1733010518810,0.55,3707.7,3706.5,0.85617529]
[1733010519176,0.24956491,3708.0,3707.3,0.8292]
[1733010519394,0.24956491,3708.5,3707.3,0.8292]
[1733010519570,0.7617,3708.6,3707.3,0.8292]
[1733010520431,1.01103829,3708.6,3707.3,0.8292]
[1733010520586,0.55,3708.4,3707.3,0.8292]
[1733010521301,0.55,3708.7,3707.3,0.8292]
[1733010521482,0.79933829,3708.7,3707.3,0.8292]
[1733010521810,0.24933829,3708.8,3708.0,0.8211]
[1733010522124,0.24933829,3709.1,3708.0,0.8211]
[1733010522422,0.24933829,3709.0,3708.0,0.8211]
[1733010522623,0.24933829,3709.1,3708.0,0.8211]
[1733010522823,0.27625996,3709.1,3708.0,0.8211]
[1733010522980,0.02692167,3709.0,3707.9,0.74637254]
[1733010523898,0.55,3709.1,3707.9,0.74637254]
[1733010524106,0.13930217,3708.9,3707.9,0.74637254]
[1733010524306,0.24929399,3709.0,3708.3,2.55543216]
[1733010524695,0.24929399,3709.8,3708.3,2.55543216]
[1733010524909,0.24929399,3709.7,3708.3,2.55543216]
[1733010525121,0.24929399,3709.8,3708.3,2.55543216]
[1733010525414,0.24929399,3709.7,3708.3,2.55543216]
[1733010525723,0.24929399,3709.8,3708.4,3.0]
[1733010525899,0.02692167,3709.7,3708.4,3.0]
[1733010526099,0.27621566,3709.7,3708.5,0.8211]
[1733010526429,0.02692167,3709.7,3708.5,0.8211]
[1733010526626,0.24929399,3709.8,3708.7,2.55543216]
[1733010526833,0.55,3709.8,3708.9,0.8211]
[1733010527525,0.24929399,3710.3,3708.9,0.8211]
[1733010527733,0.02393988,3709.7,3708.9,0.8211]
[1733010528029,0.24929399,3710.1,3708.9,0.8211]
[1733010528213,0.02391984,3709.6,3708.9,0.8211]
[1733010528403,0.24929399,3710.3,3708.9,0.8211]
[1733010528603,0.64642644,3710.3,3708.9,0.8211]
[1733010528829,0.55,3710.2,3708.9,0.8211]
[1733010529029,0.57397698,3710.2,3708.9,0.8211]
[1733010531139,0.55,3710.0,3708.9,0.8211]
[1733010531510,0.02391687,3709.9,3708.9,0.8211]
[1733010531731,0.13900169,3709.8,3708.9,0.8211]
[1733010532132,0.02387679,3709.7,3708.9,0.8211]
[1733010533634,0.55,3709.5,3708.5,0.8211]
[1733010533836,0.02692167,3709.4,3708.5,0.8211]
[1733010534026,0.02381665,3709.4,3708.5,0.8211]
[1733010534364,0.55,3709.2,3708.5,0.8211]
[1733010534667,0.02375651,3709.1,3708.5,0.8211]
[1733010538083,1.39302167,3709.3,3708.2,0.8211]
[1733010538257,0.57357108,3709.0,3708.2,0.8211]
[1733010538439,0.55,3709.0,3708.2,0.8211]
[1733010538643,0.57355229,3708.9,3708.2,0.8211]
[1733010538842,0.55,3708.7,3708.2,0.8211]
[1733010539885,0.55,3708.9,3708.2,0.8211]
[1733010540085,0.02692167,3709.0,3708.2,0.8211]
[1733010540244,0.57355229,3708.9,3708.2,0.8211]
[1733010540459,0.82253239,3708.9,3708.2,0.8211]
[1733010540792,0.55,3708.9,3708.2,0.8211]
[1733010541095,0.7989801,3709.1,3708.2,0.8211]
[1733010541297,5.72254418,3709.8,3708.5,3.0]
[1733010541298,0.2489801,3709.2,3708.5,3.0]
[1733010541507,0.2489801,3709.6,3708.7,0.7856]
[1733010541791,0.2489801,3709.7,3708.7,0.7856]
[1733010541977,1.14846816,3710.2,3708.7,0.7856]
[1733010542294,0.24933446,3710.1,3708.7,0.7856]
[1733010542503,0.24933446,3710.0,3708.9,3.0]
[1733010542700,0.24933446,3709.9,3709.2,2.55543216]
[1733010542850,0.24933446,3710.1,3709.3,0.81255258]
[1733010543057,0.24933446,3710.3,3709.7,0.7856]
[1733010543253,0.24933446,3710.6,3709.7,0.7856]
[1733010543511,0.39836816,3710.9,3709.7,0.7856]
[1733010543512,0.24933446,3710.5,3709.7,0.7856]
[1733010543689,0.24933446,3710.4,3709.7,0.7856]
[1733010543860,0.24933446,3710.3,3709.7,0.7856]
[1733010544062,0.24933446,3710.2,3709.7,0.7856]
[1733010544280,0.02692167,3710.6,3709.7,0.7856]
[1733010544559,0.55,3710.4,3709.7,0.7856]
[1733010544784,0.55,3710.2,3709.7,0.7856]
[1733010545059,0.24951904,3710.1,3709.7,0.7856]
[1733010545295,0.24953818,3710.0,3709.7,0.7856]
[1733010545479,0.24954749,3710.1,3709.7,0.7856]
[1733010545800,0.55,3710.8,3709.7,0.7856]
[1733010546000,1.19198851,3711.0,3709.7,0.7856]
[1733010546001,0.55,3710.4,3709.7,0.7856]
[1733010546212,0.24954201,3710.3,3709.7,0.7856]
[1733010546495,0.2496552,3710.2,3709.7,0.7856]
[1733010546756,0.39944832,3710.5,3709.7,0.7856]
[1733010546757,0.2496552,3710.1,3709.7,0.7856]
[1733010547089,0.39944832,3710.5,3709.7,0.7856]
[1733010547279,0.24964261,3710.4,3709.7,0.7856]
[1733010547482,0.21403567,3710.7,3709.7,0.7856]
[1733010547483,0.24964261,3710.3,3709.7,0.7856]
[1733010547680,0.24964261,3710.2,3709.7,0.7856]
[1733010547885,0.24964261,3710.1,3709.7,0.7856]
[1733010548086,0.24964261,3710.0,3709.7,0.7856]
[1733010548281,0.24997323,3709.9,3709.7,0.7856]
[1733010548621,0.39944832,3710.3,3709.7,0.7856]
[1733010548797,1.19943901,3710.2,3709.7,0.7856]
[1733010549103,0.64943901,3710.1,3709.7,0.7856]
[1733010549265,0.64943901,3710.0,3709.7,0.7856]
[1733010549464,0.55,3710.2,3709.7,0.7856]
[1733010549465,0.24999069,3709.9,3709.7,0.7856]
[1733010549665,0.55,3710.5,3709.7,0.7856]
[1733010549912,0.21403567,3710.7,3709.7,0.7856]
[1733010549913,0.25000169,3710.4,3709.7,0.7856]
[1733010550096,0.25000169,3710.3,3709.8,2.55543216]
[1733010550266,0.25000169,3710.2,3709.9,0.7856]
[1733010550487,0.55,3710.8,3709.9,0.7856]
[1733010550683,0.65002665,3710.7,3709.9,0.7856]
[1733010550886,0.55,3710.8,3709.9,0.7856]
[1733010550887,0.65002665,3710.6,3709.9,0.7856]
[1733010551124,0.25002395,3710.5,3709.9,0.7856]
[1733010551287,0.25002395,3710.4,3710.0,0.02695024]
[1733010551487,0.55,3711.0,3709.9,0.7856]
[1733010551688,0.64999105,3710.9,3709.9,0.7856]
[1733010551917,1.19999105,3710.8,3709.9,0.7856]
[1733010552119,0.64999105,3710.7,3709.9,0.7856]
[1733010552429,0.24999656,3710.6,3709.9,0.7856]
[1733010552598,0.24999656,3710.5,3709.9,0.7856]
[1733010552797,0.24999656,3710.4,3709.9,0.7856]
[1733010553131,0.24999656,3710.3,3710.0,0.02695001]
[1733010553437,0.55,3711.0,3710.0,0.02695001]
[1733010553742,0.64981231,3710.9,3710.1,0.8148]
[1733010553878,0.64981231,3710.8,3710.1,0.8148]
[1733010554085,0.64981901,3710.7,3710.1,0.8148]
[1733010554309,0.24992781,3710.6,3710.1,0.8148]
[1733010554509,0.24992562,3710.5,3710.1,0.8148]
[1733010554711,0.55,3711.2,3710.1,0.8148]
[1733010555025,0.55,3711.0,3710.1,0.8148]
[1733010555230,0.64980821,3710.9,3710.1,0.8148]
[1733010555425,0.64980821,3710.8,3710.1,0.8148]
[1733010555597,0.64980821,3710.7,3710.1,0.8148]
[1733010555928,0.24992688,3710.6,3710.1,0.8148]
[1733010556230,0.24992688,3710.5,3710.1,0.8148]
[1733010556524,0.39971279,3710.9,3710.1,0.8148]
[1733010556720,0.64953197,3710.8,3710.1,0.8148]
[1733010556899,0.24981918,3710.7,3710.1,0.8148]
[1733010557101,0.24981918,3710.6,3710.1,0.8148]
[1733010557305,0.24981918,3710.5,3710.1,0.8148]
[1733010557511,0.24981918,3710.4,3710.1,0.8148]
[1733010557721,0.39971279,3710.7,3710.1,0.8148]
[1733010557919,0.55,3711.0,3710.1,0.8148]
[1733010557920,0.2497691,3710.6,3710.1,0.8148]
[1733010558122,0.2497691,3710.5,3710.1,0.8148]
[1733010558324,0.39971279,3710.9,3710.1,0.8148]
[1733010558630,0.2496878,3710.8,3710.3,0.8148]
[1733010558789,0.39971279,3711.3,3710.3,3.8148]
[1733010558991,0.16850272,3711.8,3710.3,3.8148]
[1733010558992,0.64940623,3711.2,3710.4,0.8148]
[1733010559292,0.24969344,3711.1,3710.4,0.8148]
[1733010559527,0.24969344,3711.0,3710.4,0.8148]
[1733010559731,0.24969344,3710.9,3710.4,0.8148]
[1733010559937,0.8056,3711.4,3710.4,0.8148]
[1733010560103,0.63897838,3711.3,3710.4,0.8148]
[1733010560291,0.39937131,3711.2,3710.4,0.8148]
[1733010561835,0.39937131,3711.3,3710.4,0.8148]
[1733010562028,0.55,3711.5,3710.4,0.8148]
[1733010562337,0.39937131,3711.4,3710.4,0.8148]
[1733010562837,0.55,3711.5,3710.4,0.8148]
[1733010563025,0.94937131,3711.5,3710.4,0.7677]
[1733010563197,0.55,3711.5,3710.4,0.7677]
[1733010563398,1.24341178,3712.0,3710.3,3.0]
[1733010563399,0.55,3711.8,3710.7,3.0]
[1733010563596,0.16849365,3712.2,3710.8,0.7677]
[1733010563597,0.39937131,3711.7,3710.8,0.7677]
[1733010563811,0.39937131,3712.1,3710.8,0.7677]
[1733010564014,0.58049898,3712.0,3710.8,0.7677]
[1733010564211,0.42629298,3711.9,3710.8,0.7677]
[1733010564533,0.8274,3711.7,3710.8,0.7677]
[1733010564736,0.55,3711.6,3710.8,0.7677]
[1733010564937,0.02692167,3711.5,3710.8,0.7677]
[1733010565138,0.02692167,3711.5,3710.4,0.7677]
[1733010565139,0.55,3711.3,3710.4,0.7677]
[1733010566425,0.55,3711.3,3710.4,3.7677]
[1733010567122,0.55,3711.3,3710.4,0.7677]
[1733010568842,0.55,3711.1,3710.0,0.7677]
[1733010569013,0.55,3710.9,3710.0,0.7677]
[1733010569217,0.55,3710.7,3710.0,0.7677]
[1733010569423,0.55,3710.5,3710.0,0.7677]
[1733010569623,0.94918715,3710.5,3710.0,0.7677]
[1733010569829,1.3774,3710.5,3709.3,0.7677]
[1733010570024,0.55,3710.3,3709.3,0.7677]
[1733010570225,0.94918715,3710.3,3709.3,0.7677]
[1733010570665,0.55,3710.3,3709.3,0.7677]
[1733010571014,0.94965127,3710.3,3709.3,0.7677]
[1733010571366,0.55,3710.1,3708.8,2.55543216]
[1733010571546,0.16466167,3710.4,3708.9,0.7677]
[1733010571547,0.55,3709.9,3708.9,0.7677]
[1733010571750,0.94965127,3709.9,3708.9,0.7677]
[1733010572117,0.55,3709.7,3708.9,0.7677]
[1733010572618,0.24993493,3709.6,3708.9,0.7677]
[1733010572848,0.55,3709.7,3708.9,0.7677]
[1733010572849,0.24993493,3709.5,3708.9,0.7677]
[1733010573171,0.55,3709.7,3708.9,0.7677]
[1733010573313,0.8274,3710.0,3709.2,2.55543216]
[1733010573314,0.2498973,3709.6,3709.2,2.55543216]
[1733010573520,0.55,3710.2,3709.3,0.7677]
[1733010573870,0.24993032,3710.1,3709.3,0.7677]
[1733010574073,0.24993032,3710.0,3709.3,0.7677]
[1733010574239,0.24993032,3709.9,3709.3,0.7677]
[1733010574436,0.55,3710.2,3709.3,0.7677]
[1733010574655,0.24991325,3710.1,3709.3,0.7677]
[1733010574858,0.24991325,3710.0,3709.3,0.7677]
[1733010575036,0.55,3710.2,3709.3,0.7677]
[1733010575376,0.24991469,3710.1,3709.8,0.7677]
[1733010575666,0.39981849,3710.8,3709.8,3.7677]
[1733010575833,0.24995297,3710.7,3710.2,2.55543216]
[1733010576019,0.39981849,3711.3,3710.3,0.7677]
[1733010576215,0.64978875,3711.2,3710.3,0.7677]
[1733010576459,0.27689193,3711.1,3710.3,0.7677]
[1733010576661,0.64978875,3711.0,3709.9,3.7677]
[1733010576889,0.27689193,3710.9,3709.9,3.7677]
[1733010577030,0.8274,3710.8,3709.9,0.7677]
[1733010577233,1.47730105,3710.8,3709.9,0.7677]
[1733010577479,0.79763116,3710.7,3709.9,0.7677]
[1733010577777,0.24996194,3710.6,3709.9,0.7677]
[1733010578091,0.24996194,3710.5,3709.9,0.7677]
[1733010578287,0.94993911,3711.0,3709.9,0.7677]
[1733010578447,0.24999354,3710.4,3709.9,0.7677]
[1733010578645,0.55,3710.7,3709.9,0.7677]
[1733010578889,0.24999107,3710.6,3709.9,0.7677]
[1733010579063,0.24999107,3710.5,3709.9,0.7677]
[1733010579270,0.69999391,3710.7,3709.9,0.7677]
[1733010579451,0.25003051,3710.6,3709.9,0.7677]
[1733010579646,0.25003051,3710.5,3709.9,0.7677]
[1733010579890,0.25002464,3710.4,3709.9,0.7677]
[1733010580188,0.25003338,3710.7,3710.0,0.7677]
[1733010580400,0.25004565,3710.6,3710.0,0.7677]
[1733010580607,0.25004565,3710.5,3710.0,0.7677]
[1733010580775,0.25004565,3710.4,3710.0,0.7677]
[1733010580956,0.42686078,3711.1,3710.0,0.7677]
[1733010581151,0.8170603,3711.0,3710.0,0.7677]
[1733010581356,1.1999739,3710.9,3710.0,0.7677]
[1733010581557,0.55,3710.7,3710.0,0.7677]
[1733010581817,0.25003479,3710.6,3710.0,0.7677]
[1733010582015,0.25003479,3710.5,3710.0,0.7677]
[1733010582297,0.55,3710.8,3710.0,0.7677]
[1733010582603,0.25003262,3710.7,3710.0,0.7677]
[1733010582802,0.25003262,3710.6,3710.0,0.7677]
[1733010582957,0.25003262,3710.5,3710.0,0.7677]
[1733010583296,0.25003262,3710.4,3710.0,0.7677]
[1733010583498,0.94993911,3710.8,3710.0,0.7677]
[1733010583856,0.25002607,3710.7,3710.0,0.7677]
[1733010584054,0.57692167,3710.9,3710.0,0.7677]
[1733010584254,0.64999742,3710.8,3710.0,0.7677]
[1733010584511,0.93939956,3710.7,3710.0,0.7677]
[1733010584739,0.24999901,3710.6,3710.0,0.7677]
[1733010584941,0.24999901,3710.5,3710.0,0.7677]
[1733010585142,0.24999901,3710.4,3710.0,0.7677]
[1733010585350,0.68940055,3710.7,3710.0,0.7677]
[1733010585534,0.24996566,3710.6,3710.0,0.7677]
[1733010585739,0.24996566,3710.5,3710.0,0.7677]
[1733010586058,0.39999841,3710.9,3710.1,0.02694992]
[1733010586266,0.2499605,3710.8,3710.0,0.7677]
[1733010586431,0.2499605,3710.7,3710.0,0.7677]
[1733010586754,0.24994301,3710.6,3710.0,0.7677]
[1733010586961,0.24994522,3710.5,3710.0,0.7677]
[1733010587124,0.39999841,3710.9,3710.0,0.7677]
[1733010587325,0.55,3710.7,3710.0,0.7677]
[1733010587859,0.24994123,3710.6,3710.0,0.7677]
[1733010588068,0.24994123,3710.5,3710.0,0.7677]
[1733010588268,0.24994123,3710.4,3710.0,0.7677]
[1733010588481,0.39990598,3711.0,3710.0,0.7677]
[1733010588645,0.24993978,3710.9,3710.7,2.55543216]
[1733010588984,0.39990598,3711.6,3710.8,0.7618]
[1733010589125,0.7777,3711.9,3710.8,0.7618]
[1733010589126,0.24998379,3711.5,3710.8,0.7618]
[1733010589322,0.24998379,3711.4,3710.8,0.7618]
[1733010589578,0.24998379,3711.3,3710.8,0.7618]
[1733010589784,0.24998379,3711.2,3710.8,0.7618]
[1733010589930,0.39990598,3711.8,3710.8,0.7618]
[1733010590269,0.88188385,3711.7,3710.8,0.7618]
[1733010590475,1.22677592,3711.6,3710.8,0.7618]
[1733010590628,0.24994827,3711.5,3710.8,0.7618]
[1733010590832,0.24990548,3711.4,3710.8,0.7618]
[1733010591159,0.24990548,3711.3,3710.8,0.7618]
[1733010591478,0.24990548,3711.2,3710.8,0.7618]
[1733010591681,0.97677044,3711.6,3710.8,0.7618]
[1733010591978,0.7976,3711.3,3710.3,0.8065]
[1733010592154,0.40961443,3711.2,3710.3,0.8065]
[1733010592471,0.7976,3711.3,3710.3,0.8065]
[1733010592472,0.24985427,3711.1,3710.3,0.8065]
[1733010592681,0.24985402,3711.2,3710.3,0.8065]
[1733010592833,0.7976,3711.3,3710.3,0.8065]
[1733010593031,0.2498559,3711.2,3710.3,0.8065]
[1733010593367,0.7976,3711.3,3710.3,0.8065]
[1733010593574,0.24983739,3711.2,3710.5,3.0]
[1733010593783,0.24984255,3711.5,3710.6,0.8065]
[1733010593940,0.24984255,3711.5,3710.5,3.0]
[1733010593941,0.39984877,3712.0,3710.9,3.0]
[1733010594145,0.24988784,3711.9,3711.0,0.8065]
[1733010594328,0.24988784,3711.8,3711.0,0.8065]
[1733010594523,0.39982055,3712.2,3711.0,0.8065]
[1733010594726,0.2498341,3712.1,3711.0,0.8065]
[1733010595026,0.2498341,3712.0,3711.0,0.8065]
[1733010595227,0.2498341,3711.9,3711.0,0.8065]
[1733010595533,0.2498341,3711.8,3711.0,0.8065]
[1733010595732,0.55,3712.2,3711.0,0.8065]
[1733010595931,0.55,3712.0,3711.0,0.8065]
[1733010596163,0.24976932,3711.9,3711.3,0.8065]
[1733010596374,0.24968914,3712.1,3711.3,0.8065]
[1733010596680,0.24968914,3712.0,3711.3,0.8065]